bitfinex/quotes_SOLUSD_20241110
["timestamp","ask_amount","ask_price","bid_price","bid_amount"]
[1731276917179,15.14952548,209.38,209.37,28.653084]
[1731276917386,15.14952548,209.38,209.37,28.553084]
[1731276919183,15.14952548,209.38,209.37,4.7762]
[1731276920789,15.14952548,209.38,209.36,11.941]
[1731276921584,15.14952548,209.38,209.36,48.01454661]
[1731276922064,15.14952548,209.38,209.37,43.876884]
[1731276922270,15.14952548,209.38,209.37,43.776884]
[1731276922481,15.14952548,209.38,209.37,43.876884]
[1731276922786,11.22372548,209.38,209.37,24.7762]
[1731276923083,11.22372548,209.38,209.37,48.553084]
[1731276923678,11.22372548,209.38,209.37,24.7762]
[1731276924381,11.22372548,209.38,209.37,4.7762]
[1731276927583,42.49684661,209.55,209.41,0.1]
[1731276927917,42.49684661,209.55,209.46,36.07354661]
[1731276928118,47.26904661,209.55,209.46,36.07354661]
[1731276928305,36.07354661,209.55,209.46,36.07354661]
[1731276928804,36.07354661,209.53,209.45,16.7104]
[1731276930810,40.84624661,209.53,209.45,16.7104]
[1731276931726,36.07354661,209.51,209.42,36.07354661]
[1731276932619,36.07354661,209.54,209.46,36.07354661]
[1731276932827,36.07354661,209.54,209.44,36.07354661]
[1731276933013,36.07354661,209.52,209.44,36.07354661]
[1731276933211,36.07354661,209.54,209.44,36.07354661]
[1731276933627,36.07354661,209.54,209.4,36.07354661]
[1731276933628,36.07354661,209.54,209.46,36.07354661]
[1731276933801,36.07354661,209.54,209.47,16.7087]
[1731276935224,16.3615,209.56,209.48,36.07354661]
[1731276936321,16.3615,209.56,209.49,16.7071]
[1731276937318,4.7713,209.59,209.52,36.07354661]
[1731276937319,36.07354661,209.59,209.52,36.07354661]
[1731276937531,36.07354661,209.61,209.52,36.07354661]
[1731276937844,15.4556,209.63,209.57,36.07354661]
[1731276938015,36.07354661,209.64,209.56,36.07354661]
[1731276938339,36.07354661,209.63,209.55,36.07354661]
[1731276938711,6.308,209.67,209.57,36.07354661]
[1731276939041,36.07354661,209.64,209.57,36.07354661]
[1731276939214,36.07354661,209.63,209.56,36.07354661]
[1731276939422,36.07354661,209.63,209.55,36.07354661]
[1731276939814,0.1,209.79,209.63,23.776884]
[1731276940136,36.07354661,209.73,209.65,36.07354661]
[1731276940509,36.07354661,209.71,209.65,4.7696]
[1731276940708,36.07354661,209.73,209.65,40.84314661]
[1731276941010,36.07354661,209.73,209.65,52.76774661]
[1731276941616,36.07354661,209.77,209.69,36.07354661]
[1731276942130,36.07354661,209.75,209.65,52.76774661]
[1731276942929,36.07354661,209.73,209.65,52.76774661]
[1731276944143,36.07354661,209.75,209.67,36.07354661]
[1731276945607,15.8944,209.76,209.69,36.07354661]
[1731276946321,36.07354661,209.77,209.7,16.6904]
[1731276947705,36.07354661,209.75,209.7,16.6904]
[1731276947885,36.07354661,209.71,209.64,11.9248]
[1731276948286,36.07354661,209.73,209.65,36.07354661]
[1731276948807,36.07354661,209.73,209.64,11.9248]
[1731276949007,36.07354661,209.71,209.64,16.6948]
[1731276949886,54.9219,209.81,209.8,6.21840678]
[1731276950087,20.0,209.8,209.67,0.1]
[1731276950303,20.0,209.8,209.67,0.2]
[1731276950304,36.07354661,209.73,209.67,0.2]
[1731276951107,36.07354661,209.71,209.67,0.2]
[1731276951411,36.07354661,209.71,209.67,0.1]
[1731276951603,36.07354661,209.71,209.67,0.2]
[1731276952107,36.07354661,209.73,209.67,0.2]
[1731276952812,36.07354661,209.79,209.73,0.1]
[1731276953008,36.07354661,209.77,209.71,0.2]
[1731276953517,36.07354661,209.77,209.71,0.1]
[1731276953691,36.07354661,209.77,209.72,0.1]
[1731276954004,36.07354661,209.77,209.71,12.0212]
[1731276954201,36.07354661,209.77,209.72,0.1]
[1731276954394,40.84024661,209.79,209.72,0.1]
[1731276954597,36.07354661,209.77,209.72,0.1]
[1731276955107,11.9103,209.91,209.78,0.1]
[1731276955308,36.07354661,209.83,209.77,0.1]
[1731276955992,36.07354661,209.83,209.77,4.867]
[1731276956194,36.07354661,209.85,209.77,0.1]
[1731276956711,36.07354661,209.85,209.78,36.07354661]
[1731276957407,4.7655,209.84,209.78,36.07354661]
[1731276957796,4.89069,209.86,209.8,36.17354661]
[1731276958007,4.89069,209.86,209.8,36.07354661]
[1731276958210,4.89069,209.86,209.81,0.1]
[1731276958506,4.89069,209.86,209.8,0.1]
[1731276958507,4.89069,209.86,209.8,36.17354661]
[1731276958713,0.12549,209.86,209.81,0.1]
[1731276959409,0.12549,209.86,209.8,36.07354661]
[1731276959614,0.12549,209.86,209.81,0.1]
[1731276959818,0.12549,209.86,209.81,0.2]
[1731276960020,0.12549,209.86,209.81,0.1]
[1731276960208,0.12549,209.86,209.85,0.1]
[1731276960391,0.12549,209.86,209.83,0.2]
[1731276960598,0.12549,209.86,209.85,0.1]
[1731276960811,0.12549,209.86,209.83,0.2]
[1731276961116,0.12549,209.86,209.85,0.2]
[1731276961521,0.12549,209.86,209.85,4.9653]
[1731276962717,0.12549,209.86,209.85,64.81573061]
[1731276963014,0.12549,209.86,209.85,48.742184]
[1731276963219,0.12549,209.86,209.85,4.9653]
[1731276965836,35.71279352,210.26,210.11,0.1]
[1731276966119,35.71279352,210.16,210.06,6.4491]
[1731276966299,6.2752,210.25,210.05,0.1]
[1731276966715,34.9452,210.25,210.05,0.1]
[1731276966923,34.9452,210.25,210.03,0.2]
[1731276967125,16.6475,210.24,210.03,4.961]
[1731276967316,16.6475,210.24,210.06,0.1]
[1731276967521,35.71279352,210.14,210.06,0.1]
[1731276967726,35.71279352,210.14,210.05,35.32904739]
[1731276968216,35.71279352,210.14,210.06,0.1]
[1731276968530,35.71279352,210.14,210.05,40.08964739]
[1731276968726,40.47159352,210.14,210.06,0.1]
[1731276968917,35.71279352,210.16,210.07,35.71279352]
[1731276969222,0.1,210.21,210.09,35.71279352]
[1731276969527,35.71279352,210.16,210.08,0.1]
[1731276969707,4.7573,210.2,210.08,0.1]
[1731276969708,35.71279352,210.18,210.09,35.71279352]
[1731276970213,35.71279352,210.18,210.1,0.1]
[1731276970426,35.71279352,210.18,210.09,35.71279352]
[1731276970854,35.71279352,210.16,210.07,35.71279352]
[1731276971034,35.71279352,210.14,210.07,0.1]
[1731276972133,35.71279352,210.14,210.05,52.37539352]
[1731276972426,35.71279352,210.17,210.09,35.71279352]
[1731276972825,35.71279352,210.17,210.07,35.71279352]
[1731276973034,35.71279352,210.15,210.07,35.81279352]
[1731276973228,35.71279352,210.15,210.07,35.71279352]
[1731276973419,35.71279352,210.15,210.07,35.81279352]
[1731276973628,28.30703133,210.25,210.13,35.71279352]
[1731276973819,35.71279352,210.21,210.13,35.71279352]
[1731276974222,35.71279352,210.19,210.1,0.1]
[1731276974524,35.71279352,210.19,210.1,35.71279352]
[1731276974716,35.71279352,210.19,210.1,40.57229352]
[1731276974916,35.71279352,210.21,210.12,35.71279352]
[1731276975431,35.71279352,210.18,210.1,40.57229352]
[1731276976232,35.71279352,210.18,210.1,52.37129352]
[1731276976430,35.71279352,210.18,210.1,52.47129352]
[1731276976834,35.71279352,210.18,210.12,0.1]
[1731276977135,40.47029352,210.2,210.12,35.81279352]
[1731276978420,35.71279352,210.18,210.12,35.81279352]
[1731276978750,35.71279352,210.18,210.13,0.1]
[1731276980224,35.71279352,210.18,210.11,4.7593]
[1731276980419,35.71279352,210.18,210.13,0.1]
[1731276980639,35.71279352,210.18,210.11,4.7593]
[1731276980835,35.71279352,210.12,210.08,0.1]
[1731276981347,35.71279352,210.14,210.09,0.1]
[1731276981526,35.71279352,210.14,210.06,35.71279352]
[1731276981729,40.47169352,210.14,210.06,35.71279352]
[1731276981944,40.47169352,210.14,210.06,40.47319352]
[1731276982322,40.47169352,210.14,210.08,35.71279352]
[1731276982528,11.9924,210.22,210.08,35.81279352]
[1731276982529,35.71279352,210.16,210.08,35.81279352]
[1731276983351,35.71279352,210.16,210.09,35.81279352]
[1731276983519,35.71279352,210.16,210.09,35.71279352]
[1731276983725,35.71279352,210.16,210.09,0.1]
[1731276983926,4.7585,210.15,210.09,0.1]
[1731276984442,35.71279352,210.14,210.09,0.1]
[1731276985332,40.47169352,210.14,210.09,0.1]
[1731276986429,35.71279352,210.12,210.06,0.1]
[1731276986635,35.71279352,210.12,210.04,0.1]
[1731276986845,35.71279352,210.12,210.07,0.1]
[1731276987627,35.71279352,210.12,210.05,0.1]
[1731276987842,40.47199352,210.12,210.04,16.6633]
[1731276988147,40.47199352,210.12,210.07,0.1]
[1731276988444,35.71279352,210.11,210.07,0.1]
[1731276988642,35.71279352,210.11,210.04,52.37609352]
[1731276988837,35.71279352,210.11,210.05,0.1]
[1731276989053,35.71279352,210.11,210.05,4.7607]
[1731276989251,40.47239352,210.1,210.05,0.1]
[1731276989551,35.71279352,210.09,210.04,11.9024]
[1731276989726,35.71279352,210.07,210.03,0.1]
[1731276989928,35.71279352,210.12,210.05,0.1]
[1731276990127,4.758,210.17,210.11,0.1]
[1731276990831,35.71279352,210.17,210.11,0.1]
[1731276991954,35.71279352,210.19,210.13,0.1]
[1731276992532,35.71279352,210.22,210.16,0.1]
[1731276992734,35.71279352,210.2,210.16,0.1]
[1731276993131,35.71279352,210.2,210.13,4.8589]
[1731276993376,40.47019352,210.2,210.13,0.1]
[1731276993849,40.47019352,210.2,210.12,4.7591]
[1731276993850,40.47019352,210.2,210.15,0.1]
[1731276994245,35.71279352,210.2,210.15,0.1]
[1731276994949,35.71279352,210.2,210.13,35.81279352]
[1731276995164,35.71279352,210.22,210.15,4.8583]
[1731276996457,40.46969352,210.22,210.15,0.1]
[1731276996663,35.71279352,210.18,210.16,0.1]
[1731276996837,35.71279352,210.24,210.18,0.1]
[1731276997159,35.71279352,210.26,210.2,0.1]
[1731276997538,35.71279352,210.28,210.23,0.1]
[1731276997741,35.71279352,210.3,210.23,0.1]
[1731276998042,35.71279352,210.28,210.21,0.1]
[1731276998374,5.47329825,210.32,210.21,0.1]
[1731276998375,35.71279352,210.26,210.21,0.1]
[1731276998738,40.46889352,210.26,210.21,0.1]
[1731276999351,35.71279352,210.26,210.21,0.1]
[1731277000946,28.67,210.36,210.21,0.1]
[1731277000947,35.71279352,210.3,210.23,0.1]
[1731277001143,35.71279352,210.3,210.23,35.81279352]
[1731277001549,35.71279352,210.3,210.23,0.1]
[1731277001742,35.71279352,210.28,210.2,0.1]
[1731277002050,24.7539,210.35,210.23,35.71279352]
[1731277002256,35.71279352,210.31,210.24,0.1]
[1731277003156,4.7551,210.3,210.24,0.1]
[1731277005063,35.71279352,210.31,210.25,4.7562]
[1731277005370,35.71279352,210.31,210.26,0.1]
[1731277005575,35.71279352,210.31,210.27,0.1]
[1731277006079,35.71279352,210.29,210.25,0.1]
[1731277006765,4.753,210.39,210.31,0.1]
[1731277006960,35.71279352,210.36,210.31,0.1]
[1731277007154,4.7539,210.35,210.31,0.1]
[1731277007356,4.7539,210.35,210.29,0.1]
[1731277007559,35.71279352,210.34,210.29,0.1]
[1731277007759,35.71279352,210.3,210.25,0.1]
[1731277007965,35.71279352,210.3,210.27,0.1]
[1731277008469,35.71279352,210.3,210.24,16.7475]
[1731277008670,35.71279352,210.3,210.25,0.1]
[1731277009557,35.71279352,210.26,210.25,0.1]
[1731277009761,70.0,210.53,210.29,3.0177]
[1731277009980,23.7472848,210.65,210.29,3.0177]
[1731277009981,70.0,210.82,210.52,71.42558704]
[1731277010278,0.1,210.84,210.53,63.35491773]
[1731277010574,23.78968492,211.0,210.53,63.35491773]
[1731277010575,0.1,210.97,210.83,35.71279352]
[1731277010877,23.78968492,211.0,210.54,0.94932828]
[1731277010878,40.45359352,210.94,210.67,6.2497]
[1731277011081,0.1,210.89,210.82,35.71279352]
[1731277011276,0.1,210.89,210.78,0.1]
[1731277011487,11.9461,211.04,210.68,36.6128]
[1731277011488,0.1,210.9,210.79,0.1]
[1731277011768,0.1,210.91,210.84,35.71279352]
[1731277011952,0.1,211.0,210.71,0.1]
[1731277012154,0.1,210.91,210.71,23.876884]
[1731277012355,0.1,210.93,210.72,20.0]
[1731277012658,0.1,210.93,210.84,35.71279352]
[1731277013067,0.1,210.93,210.84,40.45569352]
[1731277013270,0.1,210.92,210.84,40.45569352]
[1731277013453,0.1,210.92,210.84,64.23257752]
[1731277013653,0.1,210.94,210.84,84.23257752]
[1731277013860,0.1,210.94,210.84,64.23257752]
[1731277014074,0.1,211.02,210.87,0.1]
[1731277014271,0.1,211.02,210.95,35.71279352]
[1731277014573,0.1,211.06,211.01,35.71279352]
[1731277015080,0.1,211.06,211.05,35.71279352]
[1731277015253,0.1,211.07,211.05,35.71279352]
[1731277015459,0.1,211.12,211.01,47.56049352]
[1731277015652,72.58456452,211.2,211.01,11.8477]
[1731277015653,0.1,211.06,211.01,11.8477]
[1731277015971,0.1,211.06,211.01,47.56049352]
[1731277016166,0.1,211.06,211.03,35.71279352]
[1731277016357,0.1,211.06,211.01,47.56049352]
[1731277016680,0.1,211.06,211.03,35.71279352]
[1731277016856,0.1,211.06,210.95,16.5915]
[1731277017059,0.1,211.15,211.04,35.71279352]
[1731277017271,0.1,211.15,210.93,6.5476]
[1731277017272,0.1,211.15,211.05,0.94751564]
[1731277017468,0.1,211.1,211.06,35.71279352]
[1731277017877,0.1,211.15,211.0,0.1]
[1731277018383,0.1,211.15,211.02,0.1]
[1731277018680,0.1,211.15,211.13,35.71279352]
[1731277019055,0.1,211.15,211.11,35.71279352]
[1731277019274,0.1,211.15,211.11,4.7367]
[1731277019667,0.1,211.17,211.11,52.29159352]
[1731277019868,0.1,211.15,211.11,16.5788]
[1731277020163,35.81279352,211.17,211.07,35.71279352]
[1731277020365,0.1,211.09,211.04,11.8458]
[1731277020582,50.42216452,211.2,211.04,11.8458]
[1731277020583,35.71279352,211.1,211.04,11.8458]
[1731277020874,0.1,211.11,211.04,11.8458]
[1731277021273,0.1,211.16,211.09,35.71279352]
[1731277021468,0.1,211.16,211.11,35.71279352]
[1731277022690,14.709371,211.2,211.15,35.71279352]
[1731277023066,14.709371,211.2,211.13,35.71279352]
[1731277023268,0.1,211.18,211.12,11.8412]
[1731277023467,35.71279352,211.13,211.12,11.8412]
[1731277023765,14.709371,211.2,211.13,20.0]
[1731277023980,14.709371,211.2,211.19,35.71279352]
[1731277024174,14.709371,211.2,211.14,0.94677717]
[1731277024375,14.709371,211.2,211.16,35.71279352]
[1731277024582,14.709371,211.2,211.18,35.71279352]
[1731277025188,14.709371,211.2,211.19,4.735]
[1731277025984,14.709371,211.2,211.19,40.44779352]
[1731277026170,14.709371,211.2,211.16,4.7355]
[1731277026371,14.709371,211.2,211.17,35.71279352]
[1731277026772,14.709371,211.2,211.19,35.71279352]
[1731277027271,14.709371,211.2,211.19,40.44779352]
[1731277027672,14.709371,211.2,211.19,4.735]
[1731277029296,14.709371,211.2,211.16,16.5748]
[1731277029503,14.709371,211.2,211.16,11.8393]
[1731277029670,14.709371,211.2,211.17,35.71279352]
[1731277029872,14.709371,211.2,211.16,16.575]
[1731277030910,0.1,211.19,211.16,16.575]
[1731277031189,14.709371,211.2,211.16,16.575]
[1731277031371,14.709371,211.2,211.16,52.28779352]
[1731277031574,14.809371,211.2,211.16,16.575]
[1731277032068,0.1,211.19,211.16,11.8393]
[1731277032271,14.709371,211.2,211.16,11.8393]
[1731277032681,14.709371,211.2,211.18,35.71279352]
[1731277032891,14.709371,211.2,211.18,0.1]
[1731277033290,14.709371,211.2,211.19,71.42558704]
[1731277033472,14.709371,211.2,211.19,76.16058704]
[1731277033670,14.709371,211.2,211.19,64.22467752]
[1731277033881,14.709371,211.2,211.19,119.93747104]
[1731277034197,0.1,211.4,211.26,0.1]
[1731277034374,0.1,211.4,211.32,35.71279352]
[1731277034574,35.81279352,211.4,211.32,34.71279352]
[1731277034992,0.1,211.7,211.39,71.42558704]
[1731277035290,0.1,211.7,211.36,6.5489]
[1731277035291,35.71279352,211.77,211.66,35.71279352]
[1731277035494,35.71279352,211.84,211.73,35.71279352]
[1731277035672,16.4486,211.86,211.67,6.18887443]
[1731277035876,0.1,211.84,211.64,11.8123]
[1731277036087,0.1,211.82,211.64,11.8123]
[1731277036678,35.71279352,211.75,211.65,35.71279352]
[1731277036993,35.71279352,211.77,211.69,35.71279352]
[1731277037195,35.71279352,211.79,211.69,35.71279352]
[1731277037399,35.71279352,211.79,211.7,4.7236]
[1731277037616,35.71279352,211.79,211.7,16.5327]
[1731277037887,35.71279352,211.78,211.7,16.5327]
[1731277038476,35.71279352,211.76,211.7,16.5327]
[1731277038779,35.71279352,211.72,211.64,4.7247]
[1731277039296,35.71279352,211.66,211.55,11.8171]
[1731277039473,35.71279352,211.59,211.55,11.8171]
[1731277039894,35.71279352,211.57,211.53,9.12642612]
[1731277040089,35.71279352,211.55,211.53,9.12642612]
[1731277040795,35.71279352,211.57,211.53,9.12642612]
[1731277040970,35.71279352,211.61,211.54,4.7272]
[1731277041175,35.71279352,211.59,211.54,4.7272]
[1731277041392,35.71279352,211.59,211.54,16.5452]
[1731277041777,35.71279352,211.61,211.54,16.5452]
[1731277042179,35.71279352,211.67,211.58,35.71279352]
[1731277042379,35.71279352,211.67,211.59,43.776884]
[1731277042592,35.71279352,211.69,211.6,35.71279352]
[1731277043203,21.9135,211.92,211.65,35.71279352]
[1731277043493,35.71279352,211.72,211.7,11.8091]
[1731277043706,35.71279352,211.72,211.61,20.0]
[1731277043877,35.71279352,211.69,211.62,11.8134]
[1731277044086,0.320679,211.87,211.69,0.1]
[1731277044297,35.71279352,211.79,211.7,35.71279352]
[1731277044600,35.71279352,211.71,211.62,11.8134]
[1731277044774,35.71279352,211.8,211.63,35.71279352]
[1731277044974,35.71279352,211.71,211.62,11.8134]
[1731277045179,35.71279352,211.72,211.63,35.71279352]
[1731277045483,35.71279352,211.74,211.64,16.5375]
[1731277045779,35.71279352,211.72,211.64,16.5375]
[1731277046797,35.71279352,211.72,211.64,11.8125]
[1731277047388,0.320679,211.87,211.72,0.1]
[1731277047585,35.71279352,211.82,211.72,35.71279352]
[1731277047800,0.320679,211.87,211.66,0.1]
[1731277047801,35.71279352,211.8,211.7,35.71279352]
[1731277048013,35.71279352,211.78,211.68,35.71279352]
[1731277048810,0.320679,211.87,211.7,35.71279352]
[1731277048811,35.71279352,211.8,211.7,35.71279352]
[1731277049006,35.71279352,211.8,211.66,40.2585]
[1731277049007,35.71279352,211.82,211.73,23.776884]
[1731277049315,35.71279352,211.84,211.74,35.71279352]
[1731277049607,0.320679,211.87,211.8,35.71279352]
[1731277050006,0.320679,211.87,211.78,35.71279352]
[1731277050304,35.71279352,211.84,211.76,35.71279352]
[1731277050604,35.71279352,211.86,211.76,35.71279352]
[1731277050914,35.71279352,211.86,211.77,16.5273]
[1731277051207,35.71279352,211.84,211.77,16.5273]
[1731277051407,35.71279352,211.84,211.77,15.5273]
[1731277052402,35.71279352,211.82,211.77,15.5273]
[1731277052592,35.71279352,211.8,211.77,15.5273]
[1731277052793,35.71279352,211.8,211.77,11.8052]
[1731277053507,35.71279352,211.83,211.77,11.8052]
[1731277053711,35.71279352,211.83,211.72,35.71279352]
[1731277053894,35.71279352,211.81,211.72,35.71279352]
[1731277054109,35.71279352,211.81,211.73,23.776884]
[1731277054802,35.71279352,211.81,211.75,23.776884]
[1731277055006,35.71279352,211.81,211.74,16.5296]
[1731277055411,35.71279352,211.83,211.74,16.5296]
[1731277055597,35.71279352,211.83,211.74,52.24239352]
[1731277055797,35.71279352,211.83,211.75,23.776884]
[1731277056100,35.71279352,211.85,211.76,35.71279352]
[1731277056691,36.03347252,211.87,211.8,0.1]
[1731277056889,0.320679,211.87,211.85,35.71279352]
[1731277057091,0.320679,211.87,211.83,35.71279352]
[1731277057296,0.320679,211.87,211.84,0.94364465]
[1731277057493,0.320679,211.87,211.83,35.71279352]
[1731277057690,0.320679,211.87,211.84,23.776884]
[1731277057891,0.04383313,211.87,211.86,23.776884]
[1731277058316,35.71279352,211.96,211.87,35.71279352]
[1731277058523,35.71279352,211.91,211.82,35.71279352]
[1731277058810,35.71279352,211.91,211.84,16.5218]
[1731277059616,35.71279352,211.93,211.85,23.776884]
[1731277059815,35.71279352,211.95,211.87,23.776884]
[1731277060905,35.71279352,211.93,211.88,16.5187]
[1731277061220,35.71279352,211.96,211.89,23.776884]
[1731277061404,35.71279352,211.92,211.88,40.1169]
[1731277061711,35.71279352,212.0,211.88,40.1169]
[1731277061712,35.71279352,211.9,211.88,40.1169]
[1731277062011,35.71279352,211.9,211.86,4.72]
[1731277062218,35.71279352,211.86,211.82,11.8022]
[1731277062513,35.71279352,211.83,211.82,11.8022]
[1731277062695,35.71279352,211.83,211.76,11.8055]
[1731277062900,35.71279352,211.9,211.76,11.8055]
[1731277062901,35.71279352,211.85,211.76,11.8055]
[1731277063097,35.71279352,211.85,211.76,16.5278]
[1731277063296,35.21279352,211.83,211.76,16.5278]
[1731277063497,35.71279352,211.84,211.76,21.32883859]
[1731277064097,35.71279352,211.84,211.76,16.5278]
[1731277064526,35.71279352,211.84,211.76,21.33562806]
[1731277064710,35.81279352,212.0,211.76,21.33562806]
[1731277064711,35.71279352,211.92,211.83,35.71279352]
[1731277065018,35.71279352,211.92,211.84,0.94369439]
[1731277065419,35.71279352,211.9,211.81,35.71279352]
[1731277065598,35.71279352,211.88,211.8,20.0]
[1731277065799,20.2601,211.98,211.82,20.0]
[1731277065800,35.71279352,211.9,211.82,20.0]
[1731277066001,35.71279352,211.9,211.83,0.943621]
[1731277066608,35.71279352,211.9,211.84,40.1245]
[1731277067303,6.3031,212.04,211.85,20.94361386]
[1731277067619,35.71279352,211.92,211.85,20.94361386]
[1731277067924,35.71279352,211.94,211.85,20.94361386]
[1731277068403,35.71279352,211.94,211.85,25.75474408]
[1731277068801,35.71279352,211.92,211.87,20.0]
[1731277069006,35.71279352,211.9,211.87,20.0]
[1731277069423,35.71279352,211.88,211.87,4.8198183]
[1731277069603,35.71279352,211.88,211.86,16.5202]
[1731277070016,35.71279352,211.9,211.86,16.5202]
[1731277070506,35.71279352,211.9,211.86,21.3400183]
[1731277070714,35.71279352,211.9,211.86,11.8002]
[1731277070898,35.71279352,211.88,211.86,11.8002]
[1731277071714,35.71279352,211.88,211.87,4.82578605]
[1731277072025,35.71279352,211.9,211.86,11.8002]
[1731277072400,4.7166,212.02,211.87,24.83584336]
[1731277072621,35.71279352,211.95,211.88,25.77909032]
[1731277072822,35.71279352,211.95,211.89,24.83584336]
[1731277073027,35.71279352,211.97,211.9,24.83584336]
[1731277073323,35.71279352,211.99,211.93,20.0]
[1731277073500,35.71279352,211.97,211.94,4.83584336]
[1731277073702,19.7377,212.08,211.82,83.02259352]
[1731277073703,35.71279352,211.95,211.82,83.02259352]
[1731277074003,35.71279352,212.0,211.82,83.02259352]
[1731277074004,35.71279352,211.93,211.88,16.5187]
[1731277074204,35.71279352,211.95,211.89,20.0]
[1731277074399,35.71279352,211.93,211.88,40.1169]
[1731277074906,35.71279352,211.9,211.88,16.5187]
[1731277075123,35.71279352,211.92,211.88,16.5187]
[1731277075328,35.71279352,211.9,211.88,11.7991]
[1731277075518,71.42558704,211.9,211.83,11.8018]
[1731277075703,35.71279352,211.83,211.75,35.71279352]
[1731277076128,35.71279352,211.83,211.75,0.94391815]
[1731277076314,35.71279352,211.77,211.69,35.71279352]
[1731277076617,35.71279352,211.77,211.69,36.65697883]
[1731277077142,35.71279352,211.79,211.69,36.65697883]
[1731277077304,35.71279352,211.75,211.72,11.808]
[1731277078208,35.71279352,211.75,211.68,4.724]
[1731277078409,35.71279352,211.75,211.69,7.2806377]
[1731277078706,35.71279352,211.71,211.7,7.2806377]
[1731277078918,35.71279352,211.71,211.56,0.1]
[1731277078919,35.71279352,211.71,211.65,16.5366]
[1731277079123,35.71279352,211.71,211.66,7.2806377]
[1731277079306,35.71279352,211.71,211.67,7.2806377]
[1731277079507,35.71279352,211.71,211.68,7.2806377]
[1731277079728,35.71279352,211.73,211.69,7.2806377]
[1731277079923,35.71279352,211.71,211.7,7.2806377]
[1731277080520,35.71279352,211.71,211.7,7.42251698]
[1731277081021,35.71279352,211.71,211.68,7.42251698]
[1731277081221,35.71279352,211.71,211.63,23.96061698]
[1731277081435,35.71279352,211.73,211.66,35.71279352]
[1731277081615,35.71279352,211.71,211.64,35.71279352]
[1731277081817,35.71279352,211.71,211.65,7.42251698]
[1731277082045,35.71279352,211.71,211.63,16.5381]
[1731277083034,35.71279352,211.71,211.66,7.25830694]
[1731277083324,35.71279352,211.71,211.64,7.25830694]
[1731277083533,35.71279352,211.71,211.65,7.25830694]
[1731277083715,9.02491102,211.87,211.69,20.0]
[1731277083921,35.71279352,211.82,211.73,35.71279352]
[1731277084117,35.71279352,211.82,211.74,7.25830694]
[1731277084315,35.81279352,211.9,211.7,0.94399479]
[1731277084316,35.71279352,211.9,211.75,42.97110046]
[1731277084518,6.4656,211.93,211.87,4.41657623]
[1731277084748,1.22,211.88,211.86,35.71279352]
[1731277084924,35.71279352,211.92,211.84,35.71279352]
[1731277085116,6.6424,212.02,211.88,35.71279352]
[1731277085117,4.7166,212.02,211.88,35.71279352]
[1731277085415,4.7156,212.06,212.0,4.41123853]
[1731277085613,4.7156,212.06,211.89,27.24346874]
[1731277086036,4.7156,212.06,211.86,20.0]
[1731277086220,35.71279352,211.99,211.9,35.71279352]
[1731277086837,35.71279352,211.99,211.91,31.01745993]
[1731277087133,4.7142,212.13,211.99,23.776884]
[1731277087333,4.7142,212.13,211.92,0.94327244]
[1731277087334,35.71279352,212.04,211.97,0.1]
[1731277087520,4.7143,212.12,212.04,4.41090307]
[1731277087718,35.71279352,212.05,211.97,23.776884]
[1731277088034,35.71279352,211.99,211.98,7.24057593]
[1731277088415,35.71279352,211.99,211.9,16.5172]
[1731277088635,35.71279352,211.97,211.91,7.23905602]
[1731277088841,35.71279352,211.95,211.92,7.23905602]
[1731277089142,35.71279352,211.93,211.86,4.72]
[1731277089438,35.71279352,211.93,211.87,7.24070916]
[1731277089644,35.71279352,212.0,211.87,7.24070916]
[1731277089645,35.71279352,211.91,211.87,7.24070916]
[1731277089837,35.71279352,212.0,211.88,7.24070916]
[1731277089838,35.71279352,211.89,211.88,7.24070916]
[1731277090041,35.71279352,211.89,211.79,40.43429352]
[1731277090334,4.7194,211.89,211.87,4.41675094]
[1731277090536,4.7194,211.89,211.86,4.41675094]
[1731277090859,4.7194,211.89,211.87,4.41675094]
[1731277091137,4.718,211.95,211.86,4.41675094]
[1731277091342,0.1,211.92,211.85,4.41675094]
[1731277091633,35.71279352,211.86,211.83,4.41675094]
[1731277091838,35.71279352,211.84,211.83,4.41675094]